Cogmind - Beta 11 X8 @@@ ROGUE MODE // 2021.10.31 @ 14:17:11 Player: Runia Result: Destroyed by G-47 Trooper with Particle Gun Performance ------------- Evolutions (1) 500 Regions Visited (5) 1000 Robots Destroyed (80) 400 Value Destroyed (1849) 1849 Prototype IDs (35) 700 Alien Tech Used (0) 0 Bonus (395) 395 TOTAL SCORE: 4844 Bonus ------- High Alert Combat Kills 95 Aligned with FarCom 300 Cogmind --------- Core Integrity 0/400 Matter 5/300 Energy 310/310 System Corruption 0% Temperature Cool (9) Movement Walking (190) Ox1 Location -8/Mines Parts ------- > --- POWER (1) -------- Reinforced Fission Core > --- PROPULSION (2) --- Advanced Myomer Leg Advanced Myomer Leg > --- UTILITY (4) ------ High-capacity Storage Unit Gravity Neutralizing Apparatus Experimental Targeting Computer Hardened Light Armor Plating > --- WEAPON (2) ------- Improved Assault Rifle Rocket Launcher > --- INVENTORY (20) --- Ion Engine Experimental Heat Sink Cooling System Coolant Injector Huge Storage Unit Improved Terrain Scanner Improved Terrain Scan Processor Advanced Weapon Cycler 8R-AWN's Armor/EX Hacking Suite AS-neutralizer No. 17b Heavy Assault Rifle Heavy Assault Rifle Heavy Assault Rifle Heavy Assault Rifle Autogun Improved Assault Rifle 8R-AWN's Boregun Datajack Peak State ------------ > --- POWER ------------ Reinforced Fission Core > --- PROPULSION ------- Advanced Myomer Leg Advanced Myomer Leg > --- UTILITY ---------- Experimental Heat Sink High-capacity Storage Unit Experimental Targeting Computer Hardened Light Armor Plating > --- WEAPON ----------- Improved Assault Rifle 8R-AWN's Boregun > --- INVENTORY -------- Ion Engine Cooling System Coolant Injector Gravity Neutralizing Apparatus Improved Terrain Scanner Improved Terrain Scan Processor Advanced Weapon Cycler 8R-AWN's Armor/EX Hacking Suite AS-neutralizer No. 17b Heavy Assault Rifle Heavy Assault Rifle Heavy Assault Rifle Heavy Assault Rifle Autogun Improved Assault Rifle Rocket Launcher Datajack [Rating: 58] Favorites ----------- Power Ion Engine Engine Ion Engine Power Core Reinforced Fission Core Propulsion Wheel Treads Light Treads Leg Advanced Myomer Leg Wheel Wheel Utility High-capacity Storage Unit Device Improved Heat Sink Storage High-capacity Storage Unit Processor Core Analyzer Protection Hardened Heavy Armor Plating Weapon Improved Assault Rifle Energy Gun Particle Gun Energy Cannon Particle Cannon Ballistic Gun Improved Assault Rifle Launcher Rocket Launcher Special Weapon Plasma Cutter Build | -11 -10 -9 -9 -9 -8 ------- Run | Scr Mat Mat Min Exi Min Slots Evolved 2 | . . 2 . . . Power . | . . . . . . Propulsion . | . . . . . . Utility 2 | . . 2 . . . Weapon . | . . . . . . Parts Attached 67 | . 13 31 6 17 . Power 7 | . 1 4 1 1 . Engine 6 | . 1 4 1 . . Core 1 | . . . . 1 . Reactor . | . . . . . . Propulsion 16 | . 7 4 1 4 . Treads 12 | . 7 2 1 2 . Leg 2 | . . . . 2 . Wheel 2 | . . 2 . . . Hover . | . . . . . . Flight . | . . . . . . Utility 15 | . 2 5 2 6 . Device 6 | . 1 1 . 4 . Storage 2 | . 1 1 . . . Processor 3 | . . 1 1 1 . Hackware . | . . . . . . Protection 4 | . . 2 1 1 . Artifact . | . . . . . . Weapon 29 | . 3 18 2 6 . Energy Gun 4 | . . 4 . . . Energy Cannon 1 | . . 1 . . . Ballistic Gun 17 | . 3 10 1 3 . Ballistic Cannon . | . . . . . . Launcher 6 | . . 3 1 2 . Special Weapon 1 | . . . . 1 . Impact Weapon . | . . . . . . Slashing Weapon . | . . . . . . Piercing Weapon . | . . . . . . Special Melee Weapon . | . . . . . . Unidentified Prototypes 7 | . . 1 . 6 . Parts Lost 8 | . 1 3 . 4 . Power 1 | . . 1 . . . Propulsion 3 | . . 1 . 2 . Utility 2 | . . 1 . 1 . Weapon 2 | . 1 . . 1 . Highest Loss Streak 3 | . 1 3 . 2 . Average Slot Usage (%) 94 | . 98 98 88 90 100 Engine 11 | . 14 10 11 9 . Treads 14 | . 27 11 11 9 . Leg 1 | . . . . 3 22 Wheel 6 | . . 10 11 7 . Device 8 | . 12 14 1 2 11 Storage 11 | . 14 11 11 11 11 Processor 7 | . . 10 11 10 11 Protection 6 | . . 6 10 11 11 Ballistic Gun 21 | . 27 18 21 19 11 Naked Turns . | . . . . . . Heaviest Build 76 | 14 28 57 71 76 73 Greatest Support 72 | 20 40 46 10 72 72 Greatest Overweight (x) 18 | . . 5 7 18 1 Average Overweight (x) 4 | . . 4 6 5 1 Largest Inventory Capacity 20 | 8 15 20 20 20 20 Average Capacity 18 | 8 13 19 20 20 20 Most Carried 20 | 5 15 20 20 20 20 Average Carried 16 | 4 9 18 19 18 20 Final Capacity 20 | 8 15 20 20 20 20 Final Carried 20 | 4 15 20 20 20 20 Class Distribution -------------------- 65% | Mutant 34% | Scavenger-Mutant Dominant Class ---------------- Mutant | -10/Materials Scavenger-Mutant | -9/Materials Mutant | -9/Mines Mutant | -9/Exiles Scavenger-Mutant | -8/Mines Resources | -11 -10 -9 -9 -9 -8 ----------- Run | Scr Mat Mat Min Exi Min Matter Collected 1812 | 200 364 833 289 126 . Remotely . | . . . . . . Salvage Created 2822 | . 1003 1251 439 129 . Parts 188 | . 57 98 23 10 . Haulers Intercepted 5 | . 2 3 . . . Recyclers Shooed 4 | . . 4 . . . Parts Field Recycled . | . . . . . . Retrieved Matter . | . . . . . . Parts Self-Destructed . | . . . . . . Prevented . | . . . . . . Kills | -11 -10 -9 -9 -9 -8 ------- Run | Scr Mat Mat Min Exi Min Combat Hostiles Destroyed 63 | . 19 28 9 7 . Guns 50 | . 19 22 7 2 . Cannons 1 | . . 1 . . . AOE 12 | . . 5 2 5 . Classes Destroyed 12 | . 7 3 2 . . Worker 3 | . . 3 . . . Builder 1 | . . 1 . . . Tunneler 1 | . . . 1 . . Hauler 5 | . 2 3 . . . Recycler 5 | . 1 2 2 . . Mechanic 1 | . 1 . . . . Operator 4 | . 2 2 . . . Watcher 6 | . 2 4 . . . Swarmer 13 | . 3 10 . . . Grunt 35 | . 16 13 6 . . Sentry 5 | . . 5 . . . Assembled 9 | . . . 3 6 . Best Kill Streak 9 | . 4 9 3 5 . Combat Bots Only 6 | . 4 6 3 5 . Max Kills in Single Turn 3 | . 2 2 2 3 . Gunslinging 1 | . 1 1 . . . Exploded 3 | . . 2 2 3 . Melee . | . . . . . . Uniques/NPCs Destroyed 1 | . . . . 1 . 8R-AWN (-9/Exiles) Combat | -11 -10 -9 -9 -9 -8 -------- Run | Scr Mat Mat Min Exi Min Damage Taken 3422 | . 616 993 347 1328 138 Core 513 | . 107 134 27 229 16 Absorbed by Shields . | . . . . . . Core Remaining (%) 78 | 100 57 . . . . Volleys Fired 279 | . 104 100 28 45 2 Largest 2 | . 2 2 2 2 1 Hottest 133 | . 60 133 46 46 23 Shots Fired 539 | . 207 193 55 82 2 Gun 511 | . 207 177 54 71 2 Cannon 10 | . . 10 . . . Launcher 14 | . . 6 1 7 . Special 4 | . . . . 4 . Kinetic 501 | . 206 168 54 71 2 Thermal 23 | . . 19 . 4 . Explosive 14 | . . 6 1 7 . Electromagnetic 1 | . 1 . . . . Robot Hit Streak 28 | . 15 11 6 28 1 Robot Miss Streak 7 | . 5 7 5 2 1 Penetration Max . | . . . . . . Secondary Targets 9 | . 2 6 1 . . Max Gunslinging Chain 1 | . 1 1 1 . . Shots Hit Robots 342 | . 136 109 28 68 1 Core Hits 172 | . 59 71 16 26 . Critical Kills . | . . . . . . Critical Parts Destroyed 2 | . 1 . . 1 . Critical Strikes 4 | . 1 1 . 2 . Burn 1 | . . 1 . . . Destroy 3 | . 1 . . 2 . Melee Attacks . | . . . . . . Impact . | . . . . . . Slashing . | . . . . . . Piercing . | . . . . . . Sneak Attacks . | . . . . . . Combat Hostiles . | . . . . . . Follow-up Attacks . | . . . . . . Damage Inflicted 5497 | . 1209 2357 510 1399 22 Guns 4097 | . 1209 1514 427 930 17 Cannons 62 | . . 62 . . . Explosions 1307 | . . 781 83 443 . Melee . | . . . . . . Ramming 27 | . . . . 22 5 Kinetic 3972 | . 1193 1405 427 930 17 Thermal 175 | . . 171 . 4 . Explosive 1307 | . . 781 83 443 . Electromagnetic 16 | . 16 . . . . Impact . | . . . . . . Slashing . | . . . . . . Piercing . | . . . . . . Highest Corruption . | . . . . . . Average Corruption . | . . . . . . Corruption Purged . | . . . . . . Overload Shots . | . . . . . . Overflow Damage 33 | . . 33 . . . Projectiles . | . . . . . . Explosions 33 | . . 33 . . . Melee . | . . . . . . Knockbacks 2 | . . . . 2 . Impact 2 | . . . . 2 . Kinetic . | . . . . . . Secondary . | . . . . . . Self-Inflicted Damage . | . . . . . . Shots . | . . . . . . Rammed 14 | . . . . 14 . Targets Rammed 16 | . . . . 14 2 Kicked 2 | . . . . . 2 Crushed . | . . . . . . Highest Temperature 89 | . 12 9 36 89 18 Average Temperature 18 | . 7 7 10 25 10 Received Heat Transfer 816 | . 300 393 42 . 81 Siege Activations . | . . . . . . Robots Corrupted . | . . . . . . Combat Hostiles . | . . . . . . Parts Fried . | . . . . . . Impact Corruptions . | . . . . . . Robots Melted . | . . . . . . Combat Hostiles . | . . . . . . Parts Melted . | . . . . . . Heat Transferred 480 | . . 444 . 36 . Parts Sabotaged . | . . . . . . Parts Stolen . | . . . . . . Parts Stripped . | . . . . . . Power Chain Reactions . | . . . . . . Missiles Intercepted . | . . . . . . Alert | -11 -10 -9 -9 -9 -8 ------- Run | Scr Mat Mat Min Exi Min Peak Influence 640 | . 417 640 335 . . Initial 205 | . . 100 205 . . Average 270 | . 260 391 169 . . Maximum Alert Level 2 | . 2 2 1 . . Low Security (%) 30 | 100 10 16 63 . 100 Level 1 49 | . 81 30 36 . . Level 2 20 | . 7 53 . . . Level 3 . | . . . . . . Level 4 . | . . . . . . Level 5 . | . . . . . . High Security . | . . . . . . Max Security . | . . . . . . Squads Dispatched 12 | . 5 6 1 . . Investigation 4 | . 2 1 1 . . Extermination . | . . . . . . Reinforcement 8 | . 3 5 . . . Assault . | . . . . . . Garrison . | . . . . . . Intercept . | . . . . . . Construction Impeded . | . . . . . . Haulers Reinforced . | . . . . . . Active Scanning Responses . | . . . . . . Cargo Convoy Interrupts . | . . . . . . Stealth | -11 -10 -9 -9 -9 -8 --------- Run | Scr Mat Mat Min Exi Min Distress Signals 5 | . 1 4 . . . Communications Jammed . | . . . . . . Distress Signals . | . . . . . . Times Spotted 108 | . 40 42 12 11 3 Peak Tracking Total 11 | . 6 8 3 11 3 Tactical Retreats 7 | . 3 1 . 3 . Traps | -11 -10 -9 -9 -9 -8 ------- Run | Scr Mat Mat Min Exi Min Traps Triggered 1 | . . 1 . . . Indirectly . | . . . . . . Trap Hack Attempts . | . . . . . . Triggered . | . . . . . . Disarmed . | . . . . . . Reprogrammed . | . . . . . . Reused . | . . . . . . Traps Extracted . | . . . . . . Installed . | . . . . . . Triggered . | . . . . . . Exploded 3 | . . . . 3 . Machines | -11 -10 -9 -9 -9 -8 ---------- Run | Scr Mat Mat Min Exi Min Machines Disabled 5 | . . 1 . 4 . Max in Single Turn 2 | . . 1 . 2 . Machines Sabotaged . | . . . . . . Garrisons Compromised . | . . . . . . Overloaded Fab Kills . | . . . . . . Hacking | -11 -10 -9 -9 -9 -8 --------- Run | Scr Mat Mat Min Exi Min Machines Accessed 16 | . 7 6 1 2 . Terminals 9 | . 5 4 . . . Fabricators . | . . . . . . Repair Stations . | . . . . . . Recycling Units 3 | . 2 1 . . . Scanalyzers 1 | . . 1 . . . Garrison Access . | . . . . . . Total Hacks 40 | . 17 20 1 2 . Successful 27 | . 7 17 1 2 . Failed 12 | . 10 2 . . . Catastrophic 1 | . 1 . . . . Database Lockouts 1 | . . 1 . . . Manual 14 | . 8 5 . 1 . Terminals 23 | . 15 8 . . . Fabricators . | . . . . . . Repair Stations . | . . . . . . Recycling Units 3 | . 2 1 . . . Scanalyzers 11 | . . 11 . . . Garrison Access . | . . . . . . Terminal Hacks 12 | . 4 5 1 2 . Record 1 | . . . . 1 . Part Schematic 1 | . . 1 . . . Robot Analysis 1 | . 1 . . . . Prototype ID Bank 2 | . 1 1 . . . Open Door 1 | . . . 1 . . Alert Level 2 | . . 2 . . . Unreport Threat 1 | . . 1 . . . Hauler Manifests 1 | . 1 . . . . Zone Layout 1 | . 1 . . . . EX-Prototype ID Bank 1 | . . . . 1 . Fabricator Hacks . | . . . . . . Repair Station Hacks . | . . . . . . Recycling Unit Hacks . | . . . . . . Scanalyzer 11 | . . 11 . . . Insert Component 4 | . . 4 . . . Analyze 7 | . . 7 . . . Garrison Access Hacks . | . . . . . . Unauthorized Hacks 4 | . 3 1 . . . Terminals 1 | . 1 . . . . Assimilate 1 | . 1 . . . . Fabricators . | . . . . . . Repair Stations . | . . . . . . Recycling Units 3 | . 2 1 . . . Tunnel 3 | . 2 1 . . . Scanalyzers . | . . . . . . Garrison Access . | . . . . . . Data Cores Recovered 1 | . . 1 . . . Used . | . . . . . . Hacking Detections 9 | . 5 4 . . . Full Trace Events . | . . . . . . Feedback Events . | . . . . . . Feedback Blocked . | . . . . . . Robot Schematics Acquired . | . . . . . . Robots Built . | . . . . . . Authchips . | . . . . . . Time . | . . . . . . Total Robot Build Rating . | . . . . . . Part Schematics Acquired 5 | . . 5 . . . Parts Built . | . . . . . . Authchips . | . . . . . . Time . | . . . . . . Total Part Build Rating . | . . . . . . Parts Repaired . | . . . . . . Time . | . . . . . . Parts Recycled . | . . . . . . Recycled Matter . | . . . . . . Retrieved Matter . | . . . . . . Retrieved Components . | . . . . . . Parts Scanalyzed 4 | . . 4 . . . Part Schematics Acquired 4 | . . 4 . . . Parts Damaged . | . . . . . . Bothacking | -11 -10 -9 -9 -9 -8 ------------ Run | Scr Mat Mat Min Exi Min Used RIF Installer . | . . . . . . Robots Hacked . | . . . . . . Non-combat . | . . . . . . Combat . | . . . . . . Robot Hacks Applied . | . . . . . . Relay Couplers Released . | . . . . . . Robots Rewired . | . . . . . . Allies Hacked . | . . . . . . Hacks Repelled . | . . . . . . Allies | -11 -10 -9 -9 -9 -8 -------- Run | Scr Mat Mat Min Exi Min Total Allies . | . . . . . . Largest Group . | . . . . . . Highest-Rated Group . | . . . . . . Highest-Rated Ally . | . . . . . . Total Orders . | . . . . . . Ally Attacks . | . . . . . . Total Damage . | . . . . . . Kills . | . . . . . . Allies Corrupted . | . . . . . . Allies Melted . | . . . . . . Intel | -11 -10 -9 -9 -9 -8 ------- Run | Scr Mat Mat Min Exi Min Robot Analysis Total 1 | . 1 . . . . Derelict Logs Recovered 2 | . . . 2 . . Drone Launches . | . . . . . . Drone Recoveries . | . . . . . . Exploration | -11 -10 -9 -9 -9 -8 ------------- Run | Scr Mat Mat Min Exi Min Turns Passed 5508 | 4 1456 1358 1100 1448 142 Spaces Moved 2561 | 3 699 601 542 645 71 Core 1 | . . . . 1 . Treads 699 | . 684 13 . 2 . Legs 213 | 3 15 . . 124 71 Wheels 1648 | . . 588 542 518 . Hover . | . . . . . . Flight . | . . . . . . Fastest Speed 120 | 120 120 140 155 120 190 Average Speed 171 | 120 159 155 182 187 190 Slowest Speed 950 | 120 160 240 185 950 190 Overloaded Moves . | . . . . . . Propulsion Burnouts . | . . . . . . Robots Hopped . | . . . . . . Cave-ins Triggered . | . . . . . . Exploration Rate (%) 53 | 2 98 65 63 70 20 Regions Visited 5 Branch Regions 3 Pre-discovered Areas 4 | . 2 1 . 1 . Known Exits Taken . | . . . . . . Unknown Exits Taken 5 | 1 1 1 1 1 . Scrap Searched 1 | . . . 1 . . Spaces Dug 7 | . . . . 7 . Terrain Destroyed 79 | . . 35 13 31 . Melee . | . . . . . . Projectile 1 | . . 1 . . . AOE 78 | . . 34 13 31 . Terrain Rammed . | . . . . . . Walls Destroyed . | . . . . . . Machines Disabled . | . . . . . . Actions | -11 -10 -9 -9 -9 -8 --------- Run | Scr Mat Mat Min Exi Min Total 3166 | 4 873 840 599 775 75 Wait 135 | . 30 64 9 32 . Move 2556 | 2 698 600 541 644 71 Hop . | . . . . . . Pick Up 56 | . 17 21 5 13 . Fast Attach 11 | . 1 7 2 1 . Attach 19 | . 3 8 . 8 . Detach . | . . . . . . Swap 37 | . 9 16 4 8 . Drop 57 | 2 11 24 10 10 . Fire 279 | . 104 100 28 45 2 Melee . | . . . . . . Ram . | . . . . . . Kick 2 | . . . . . 2 Crush 14 | . . . . 14 . Escape Stasis . | . . . . . . Rewire . | . . . . . . Trap . | . . . . . . Miscellaneous . | . . . . . . Route ------- -11/Scrapyard -10/Materials (discovered 4 exits: *Mat x3 / [*Min]) -9/Materials (discovered 3 exits: [*Mat] / *Min / [*Sto]) -9/Mines (discovered 2 exits: [*Mat] / *Exi) -9/Exiles -8/Mines History --------- Turn | Location | Event 2 | -11/Scrapyard | Discovered new exit (range 0) 5 | -11/Scrapyard | Entered Materials 280 | -10/Materials | Discovered new exit (range 16) 317 | -10/Materials | Build established: Mutant 347 | -10/Materials | Discovered new exit (range 13) 727 | -10/Materials | Discovered new exit (range 13) 745 | -10/Materials | Build established: Scavenger-Mutant 947 | -10/Materials | Discovered new exit (range 15) 1051 | -10/Materials | Build established: Mutant 1461 | -10/Materials | Entered another Materials area 1461 | -9/Materials | Evolved 2 slots: Utility x2 1677 | -9/Materials | Discovered new exit (range 3) 2073 | -9/Materials | Build established: Scavenger-Mutant 2279 | -9/Materials | Central database locked down 2350 | -9/Materials | Lost 3 parts (1p1n1u) 2383 | -9/Materials | Discovered new exit (range 13) 2688 | -9/Materials | Discovered new exit (range 18) 2819 | -9/Materials | Entered Mines 2835 | -9/Mines | Met a Derelict bent on vengeance 2850 | -9/Mines | Discovered new exit (range 11) 2868 | -9/Mines | Met a Derelict shopkeep closing up shop 3024 | -9/Mines | Learned Materials emergency access door positions 3200 | -9/Mines | Build established: Mutant 3243 | -9/Mines | Learned 2 Materials zone layouts 3273 | -9/Mines | Deemed a non-threat by the Exiles lab entrance 3423 | -9/Mines | Joined a pair of Derelicts in attacking an 0b10 outpost 3573 | -9/Mines | Assembled infested the area 3578 | -9/Mines | Assisted by a Guerilla fighting off Assembled 3912 | -9/Mines | Discovered new exit (range 5) 3919 | -9/Mines | Entered Exiles 3964 | -9/Exiles | Met 8R-AWN 3995 | -9/Exiles | Met EX-HEX 4067 | -9/Exiles | Met EX-DEC 4082 | -9/Exiles | Learned location of Zion (-6) 4117 | -9/Exiles | Met EX-BIN 4143 | -9/Exiles | Aligned with FarCom system 4145 | -9/Exiles | Given EX-Vault access code 4191 | -9/Exiles | Opened EX-Vault 4234 | -9/Exiles | Warned to stay clear of 0b10 Research branches 4352 | -9/Exiles | Discovered new exit (range 14) 4846 | -9/Exiles | Attacked by the Exiles 4977 | -9/Exiles | Core integrity fell below 50% 5046 | -9/Exiles | Core integrity fell below 20% 5089 | -9/Exiles | Destroyed 8R-AWN 5116 | -9/Exiles | Found Prototype Ballistic Gun 5117 | -9/Exiles | Identified 8R-AWN's Boregun 5131 | -9/Exiles | Found Prototype Processor 5132 | -9/Exiles | Identified Exp. Targeting Computer 5137 | -9/Exiles | Found Prototype Device 5153 | -9/Exiles | Found Prototype Protection 5156 | -9/Exiles | Identified AS-neutralizer No. 17b 5367 | -9/Exiles | Entered Mines 5389 | -8/Mines | Build established: Scavenger-Mutant 5509 | -8/Mines | Destroyed by G-47 Trooper with Particle Gun Last Messages --------------- 05122_ Acquired Rnf. Fission Core. 05123_ Discarded Core Analyzer. 05131_ Acquired Prototype Processor. 05132_ Identified Exp. Targeting Computer. 05137_ Acquired Prototype Device. 05153_ Acquired Prototype Protection. 05154_ Identified Exp. Heat Sink. 05156_ Identified AS-neutralizer No. 17b. 05157_ Identified Gravity Neutralizing Apparatus. 05166_ as-21156 destroyed. 05166_ Machine disabled. 05170_ Acquired 1 matter. 05183_ Acquired 2 matter. 05191_ Acquired 3 matter. 05278_ Acquired Huge Storage Unit. LOCATION=UNKNOWN GOAL=ESCAPE 05368_ K-01 Serf collects debris. 05471_ G-50 Soldier suffers critical hit (Burn). 05472_ Kicked T-07 Excavator. Map ----- +----------------------------------------------------+ | ?????????????????????????????????????????????????? | | ?????????????????????????????????????????????????? | | ?????????????????????????????????????????????????? | | ?????????????????????????????????????????????????? | | ?????????????????????????????????????????????????? | | ?????????????????????????????????????????????????? | | ?????????????????????????????????????????????????? | | ??????????????????????????????????????#??????????? | | ????????????????????????????????????## ??????????? | | ???????????????????????????????????? ??????????? | | ???????????????????????????#???????? ""????????? | | ????????????????????? ????# ???????? """???????? | | ???????????????????? ??? ????????? """???????? | | ????????????????????? ??# ????????? ??????## | | ????????????????????? ## ????????? ???????# | | ????????????????????? ????????? ???????# | | ?????????????????????? ??????????# #????#### | | ?????????????????????? ??????????# #????# | | ?????????????????????? ??????????# #????# ## | | ?????????????##???????? ??????????# #????# ### | | ?????????????# ???????? ????####### #????# #?? | | ?????????????# ???????# ????# ###### #?? | | ????????????## ??????## #????# #?? | | ??????????### ??????# #????# ##############?? | | ?????????## ?????# #????# #??????????????? | | ?????????? ??????# @##??## #??????????????? | | ??????????? ??????# #### #??????????????? | | ???????????? #?????# t #??????????????? | | ?????????????# ?????# ##?????????????? | | ??????????????# ?????## #g### ##????????????? | | ??????????????# ##????#### #?## ##???????????? | | ???????????????# ######### #??## #???????????? | | ???????????????# #???# ##??????????? | | ???????? ############??## ##?????????? | | ???? ######## ??????????????# #?????????? | | ???????????????# ???????????????# #?????????? | | ???????????????##???????????????# #?????????? | | ????????????????????????????????## ##?????????? | | ?????????????????????????????????######??????????? | | ?????????????????????????????????????????????????? | | ?????????????????????????????????????????????????? | | ?????????????????????????????????????????????????? | | ?????????????????????????????????????????????????? | | ?????????????????????????????????????????????????? | | ?????????????????????????????????????????????????? | | ?????????????????????????????????????????????????? | | ?????????????????????????????????????????????????? | | | | | | | +----------------------------------------------------+ Best States ------------- Heat Dissipation 56 Coolant Potential 65 Energy Generation 19 Energy Capacity 310 Matter Stores 300 Matter Capacity 300 Sight Range 18 Terrain Scan Density 10 Additional Mass Support 12 Armor Coverage 600 Utility Shielding 33 Evasion (%) 55 Targeting Accuracy 12 Core Analysis 6 Recoil Reduction 2 Item Schematics ----------------- Arm. Wheel | -9/Materials | Hacked Huge Storage Unit | -9/Materials | Scanalyzed Shield Generator | -9/Materials | Scanalyzed Cooling System | -9/Materials | Scanalyzed Imp. Terrain Scan Processor | -9/Materials | Scanalyzed Robot Schematics ------------------ None Fabricated ------------ Nothing Alien Tech Used ----------------- None Achievements -------------- None Challenges ------------ None Game ------ Seed LatentDeepStorage Manual? 0 Play Time 00:31:00 Cumulative 423.3 hours Start 2021.10.31 @ 13:26:59 End 2021.10.31 @ 14:17:11 Sessions 1 Manual Loads 0 Difficulty Rogue Special Mode None Game No. 425 Rogue 425 Adventurer 0 Explorer 0 Win Type - Total 8 Types 7/0/0/1/0/0/0/0/0 Lore% 80 Gallery% 92 Achievement% 69 Wizard Run 0 Options --------- ASCII 0 Keyboard 0 Movement Mouse Keybinds 1 Fullscreen 2 Font 24/Smallcaps Map View 76x50 Tactical HUD 1 Map Filters NONE Filters NONE Steam 1 RUN: 17e4f489-3408-4ed5-adc0-12b4b559dffa